Cogmind - Beta 10.2 @@@ ROGUE MODE // 2021.05.07 @ 12:41:04 Player: Teratos Result: Self-destructed Performance ------------- Evolutions (2) 1000 Regions Visited (5) 1000 Robots Destroyed (29) 145 Value Destroyed (858) 858 Prototype IDs (2) 40 Alien Tech Used (0) 0 Bonus (325) 325 TOTAL SCORE: 3368 Bonus ------- Follower Combat Kills 25 Aligned with FarCom 300 Cogmind --------- Core Integrity 514/550 Matter 500/500 Energy 160/160 System Corruption 0% Temperature Cool (0) Movement Walking (122) Location -8/Materials Parts ------- > --- POWER (1) -------- Light Nuclear Core > --- PROPULSION (4) --- Aluminum Leg Carbon-fiber Leg Carbon-fiber Leg Titanium Leg > --- UTILITY (4) ------ Improved Heat Sink High-capacity Matter Pod > --- WEAPON (2) ------- AWS/Gauss > --- INVENTORY (4) ---- Light Ion Engine Peak State ------------ > --- POWER ------------ Light Nuclear Core > --- PROPULSION ------- Aluminum Leg Carbon-fiber Leg Carbon-fiber Leg Titanium Leg > --- UTILITY ---------- Improved Heat Sink High-capacity Matter Pod > --- WEAPON ----------- AWS/Gauss > --- INVENTORY -------- Light Ion Engine [Rating: 33] Favorites ----------- Power Ion Engine Engine Ion Engine Power Core Light Nuclear Core Propulsion Light Treads Treads Light Treads Leg Carbon-fiber Leg Flight Unit Flight Unit Utility High-capacity Matter Pod Device Improved Heat Sink Storage High-capacity Matter Pod Weapon Slug Cannon Energy Gun EM Pulse Gun Ballistic Gun AWS/Gauss Ballistic Cannon Slug Cannon Build | -11 -10 -10 -10 -9 -8 ------- Run | Scr Mat Min Exi Min Mat Slots Evolved 4 | . . . . . 4 Power . | . . . . . . Propulsion 2 | . . . . . 2 Utility 2 | . . . . . 2 Weapon . | . . . . . . Parts Attached 20 | 5 . 2 3 2 8 Power 3 | 1 . 1 . . 1 Engine 2 | 1 . 1 . . . Core 1 | . . . . . 1 Reactor . | . . . . . . Propulsion 10 | 2 . . . 2 6 Treads 4 | 2 . . . 1 1 Leg 5 | . . . . . 5 Wheel . | . . . . . . Hover . | . . . . . . Flight 1 | . . . . 1 . Utility 3 | . . . 2 . 1 Device 2 | . . . 1 . 1 Storage 1 | . . . 1 . . Processor . | . . . . . . Hackware . | . . . . . . Protection . | . . . . . . Artifact . | . . . . . . Weapon 4 | 2 . 1 1 . . Energy Gun 1 | 1 . . . . . Energy Cannon . | . . . . . . Ballistic Gun 2 | 1 . . 1 . . Ballistic Cannon 1 | . . 1 . . . Launcher . | . . . . . . Special Weapon . | . . . . . . Impact Weapon . | . . . . . . Slashing Weapon . | . . . . . . Piercing Weapon . | . . . . . . Special Melee Weapon . | . . . . . . Unidentified Prototypes 2 | . . . 2 . . Parts Lost 2 | . . 1 . 1 . Power . | . . . . . . Propulsion 1 | . . . . 1 . Utility . | . . . . . . Weapon 1 | . . 1 . . . Highest Loss Streak 1 | . . 1 . 1 . Average Slot Usage (%) 64 | . 71 67 59 68 62 Engine 12 | . 14 14 14 14 2 Treads 24 | . 28 28 28 24 2 Leg 2 | . . . . . 24 Storage 3 | . . . 1 14 9 Energy Gun 5 | . 14 10 . . . Ballistic Gun 7 | . 14 . 7 14 9 Ballistic Cannon 6 | . . 13 6 . . Naked Turns . | . . . . . . Heaviest Build 20 | 7 7 14 19 19 20 Greatest Support 57 | 40 40 40 40 40 57 Greatest Overweight (x) 2 | 2 . . . . 1 Average Overweight (x) . | . . . . . . Largest Inventory Capacity 4 | 4 4 4 4 4 4 Average Capacity 4 | 4 4 4 4 4 4 Most Carried 2 | . . 1 1 1 2 Average Carried . | . . . 1 1 1 Final Capacity 4 | 4 4 4 4 4 4 Final Carried 1 | . . 1 1 1 1 Class Distribution -------------------- 90% | Mutant 9% | Scavenger-Mutant Dominant Class ---------------- Mutant | -10/Materials Mutant | -10/Mines Mutant | -10/Exiles Mutant | -9/Mines Scavenger-Mutant | -8/Materials Resources | -11 -10 -10 -10 -9 -8 ----------- Run | Scr Mat Min Exi Min Mat Matter Collected 677 | 143 164 83 90 117 80 Remotely . | . . . . . . Salvage Created 1025 | . 164 182 . 271 408 Parts 60 | . 13 12 . 11 24 Haulers Intercepted . | . . . . . . Recyclers Shooed . | . . . . . . Parts Field Recycled . | . . . . . . Retrieved Matter . | . . . . . . Parts Self-Destructed . | . . . . . . Prevented . | . . . . . . Kills | -11 -10 -10 -10 -9 -8 ------- Run | Scr Mat Min Exi Min Mat Combat Hostiles Destroyed 26 | . 5 4 . 10 7 Guns 22 | . 5 . . 10 7 Cannons 4 | . . 4 . . . Classes Destroyed 8 | . 3 2 . 1 2 Worker 1 | . 1 . . . . Builder 2 | . . 1 . . 1 Recycler 1 | . . 1 . . . Watcher 1 | . . . . . 1 Swarmer 7 | . 3 . . 4 . Grunt 16 | . 2 4 . 4 6 Hunter 1 | . . . . . 1 Assembled 2 | . . . . 2 . Best Kill Streak 4 | . 3 4 . 4 4 Combat Bots Only 4 | . 3 2 . 4 3 Max Kills in Single Turn 1 | . 1 1 . 1 1 Gunslinging . | . . . . . . Exploded . | . . . . . . Melee . | . . . . . . Uniques/NPCs Destroyed . | . . . . . . Combat | -11 -10 -10 -10 -9 -8 -------- Run | Scr Mat Min Exi Min Mat Damage Taken 525 | . 149 220 . 102 54 Core 128 | . 35 40 . 17 36 Absorbed by Shields . | . . . . . . Core Remaining (%) 81 | 100 . . . 63 . Volleys Fired 42 | . 19 23 . . . Largest 2 | . 2 2 . . . Hottest 88 | . 60 88 . . . Shots Fired 145 | . 38 39 . 28 40 Gun 122 | . 38 16 . 28 40 Cannon 23 | . . 23 . . . Launcher . | . . . . . . Special . | . . . . . . Kinetic 110 | . 19 23 . 28 40 Thermal . | . . . . . . Explosive . | . . . . . . Electromagnetic 35 | . 19 16 . . . Robot Hit Streak 19 | . 4 7 . 7 19 Robot Miss Streak 4 | . 3 4 . 2 1 Penetration Max . | . . . . . . Secondary Targets 1 | . 1 . . . . Max Gunslinging Chain 1 | . 1 . . . . Autonomous 69 | . . . . 28 41 Shots Hit Robots 91 | . 19 19 . 20 33 Core Hits 38 | . 6 7 . 10 15 Critical Hits 6 | . . 4 . . 2 Critical Kills . | . . . . . . Critical Parts Destroyed 6 | . . 4 . . 2 Melee Attacks . | . . . . . . Impact . | . . . . . . Slashing . | . . . . . . Piercing . | . . . . . . Sneak Attacks . | . . . . . . Combat Hostiles . | . . . . . . Follow-up Attacks . | . . . . . . Damage Inflicted 2499 | . 237 484 . 759 1019 Guns 2072 | . 237 60 . 756 1019 Cannons 424 | . . 424 . . . Explosions . | . . . . . . Melee . | . . . . . . Ramming 3 | . . . . 3 . Kinetic 2319 | . 120 424 . 756 1019 Thermal . | . . . . . . Explosive . | . . . . . . Electromagnetic 177 | . 117 60 . . . Impact . | . . . . . . Slashing . | . . . . . . Piercing . | . . . . . . Highest Corruption . | . . . . . . Average Corruption . | . . . . . . Corruption Purged . | . . . . . . Overload Shots . | . . . . . . Overflow Damage 35 | . . 35 . . . Projectiles 35 | . . 35 . . . Explosions . | . . . . . . Melee . | . . . . . . Knockbacks 5 | . . 5 . . . Impact . | . . . . . . Kinetic 5 | . . 5 . . . Secondary . | . . . . . . Self-Inflicted Damage . | . . . . . . Shots . | . . . . . . Rammed 2 | . . . . 2 . Targets Rammed 2 | . . . . 2 . Kicked . | . . . . . . Crushed . | . . . . . . Highest Temperature 319 | . 24 319 . . . Average Temperature 109 | . 19 126 . . . Received Heat Transfer 162 | . 24 129 . . 9 Effects 1 | . . 1 . . . Energy Bleed 1 | . . 1 . . . Siege Activations . | . . . . . . Robots Corrupted . | . . . . . . Combat Hostiles . | . . . . . . Parts Fried . | . . . . . . Impact Corruptions . | . . . . . . Robots Melted . | . . . . . . Combat Hostiles . | . . . . . . Parts Melted . | . . . . . . Heat Transferred . | . . . . . . Parts Sabotaged . | . . . . . . Parts Stolen . | . . . . . . Parts Stripped . | . . . . . . Power Chain Reactions . | . . . . . . Missiles Intercepted . | . . . . . . Alert | -11 -10 -10 -10 -9 -8 ------- Run | Scr Mat Min Exi Min Mat Peak Influence 327 | . 155 135 . 165 327 Initial 64 | . . 60 . . 64 Average 86 | . 86 78 . 54 174 Maximum Alert Level 1 | . . . . . 1 Low Security (%) 93 | 100 100 100 . 100 60 Level 1 6 | . . . . . 39 Level 2 . | . . . . . . Level 3 . | . . . . . . Level 4 . | . . . . . . Level 5 . | . . . . . . High Security . | . . . . . . Max Security . | . . . . . . Squads Dispatched 4 | . 1 . . 1 2 Investigation . | . . . . . . Extermination . | . . . . . . Reinforcement 4 | . 1 . . 1 2 Assault . | . . . . . . Garrison . | . . . . . . Intercept . | . . . . . . Construction Impeded 1 | . . . . 1 . Haulers Reinforced . | . . . . . . Stealth | -11 -10 -10 -10 -9 -8 --------- Run | Scr Mat Min Exi Min Mat Distress Signals 2 | . 1 . . . 1 Communications Jammed . | . . . . . . Distress Signals . | . . . . . . Times Spotted 37 | . 9 3 . 11 14 Peak Tracking Total 4 | . 4 1 . 4 4 Tactical Retreats . | . . . . . . Traps | -11 -10 -10 -10 -9 -8 ------- Run | Scr Mat Min Exi Min Mat Traps Triggered . | . . . . . . Indirectly . | . . . . . . Trap Hack Attempts . | . . . . . . Triggered . | . . . . . . Disarmed . | . . . . . . Reprogrammed . | . . . . . . Reused . | . . . . . . Traps Extracted . | . . . . . . Installed . | . . . . . . Triggered . | . . . . . . Machines | -11 -10 -10 -10 -9 -8 ---------- Run | Scr Mat Min Exi Min Mat Machines Disabled 3 | . 1 1 . . 1 Max in Single Turn 1 | . 1 1 . . 1 Machines Sabotaged . | . . . . . . Garrisons Compromised . | . . . . . . Overloaded Fab Kills . | . . . . . . Fab Network Shutdowns . | . . . . . . Hacking | -11 -10 -10 -10 -9 -8 --------- Run | Scr Mat Min Exi Min Mat Machines Accessed 1 | . . . . . 1 Terminals 1 | . . . . . 1 Fabricators . | . . . . . . Repair Stations . | . . . . . . Recycling Units . | . . . . . . Scanalyzers . | . . . . . . Garrison Access . | . . . . . . Total Hacks 2 | . . . . . 2 Successful 1 | . . . . . 1 Failed 1 | . . . . . 1 Catastrophic 1 | . . . . . 1 Database Lockouts . | . . . . . . Manual 1 | . . . 1 . . Terminals 2 | . . . . . 2 Fabricators . | . . . . . . Repair Stations . | . . . . . . Recycling Units . | . . . . . . Scanalyzers . | . . . . . . Garrison Access . | . . . . . . Terminal Hacks 1 | . . . . . 1 Robot Analysis 1 | . . . . . 1 Fabricator Hacks . | . . . . . . Repair Station Hacks . | . . . . . . Recycling Unit Hacks . | . . . . . . Scanalyzer . | . . . . . . Garrison Access Hacks . | . . . . . . Unauthorized Hacks . | . . . . . . Terminals . | . . . . . . Fabricators . | . . . . . . Repair Stations . | . . . . . . Recycling Units . | . . . . . . Scanalyzers . | . . . . . . Garrison Access . | . . . . . . Data Cores Recovered . | . . . . . . Used . | . . . . . . Hacking Detections 1 | . . . . . 1 Full Trace Events . | . . . . . . Feedback Events . | . . . . . . Feedback Blocked . | . . . . . . Robot Schematics Acquired . | . . . . . . Robots Built . | . . . . . . Matter . | . . . . . . Time . | . . . . . . Total Robot Build Rating . | . . . . . . Part Schematics Acquired . | . . . . . . Parts Built . | . . . . . . Matter . | . . . . . . Time . | . . . . . . Total Part Build Rating . | . . . . . . Parts Repaired . | . . . . . . Time . | . . . . . . Parts Recycled . | . . . . . . Recycled Matter . | . . . . . . Retrieved Matter . | . . . . . . Retrieved Components . | . . . . . . Parts Scanalyzed . | . . . . . . Part Schematics Acquired . | . . . . . . Parts Damaged . | . . . . . . Bothacking | -11 -10 -10 -10 -9 -8 ------------ Run | Scr Mat Min Exi Min Mat Used RIF Installer . | . . . . . . Robots Hacked . | . . . . . . Non-combat . | . . . . . . Combat . | . . . . . . Robot Hacks Applied . | . . . . . . Relay Couplers Released . | . . . . . . Robots Rewired . | . . . . . . Allies Hacked . | . . . . . . Hacks Repelled . | . . . . . . Allies | -11 -10 -10 -10 -9 -8 -------- Run | Scr Mat Min Exi Min Mat Total Allies 2 | . . . . 2 . Largest Group 2 | . . . . 2 . Highest-Rated Group 32 | . . . . 32 . Highest-Rated Ally 16 | . . . . 16 . Total Orders . | . . . . . . Ally Attacks 9 | . . . . 9 . Total Damage 97 | . . . . 97 . Kills 1 | . . . . 1 . Allies Corrupted . | . . . . . . Allies Melted 1 | . . . . 1 . Intel | -11 -10 -10 -10 -9 -8 ------- Run | Scr Mat Min Exi Min Mat Robot Analysis Total 1 | . . . . . 1 Derelict Logs Recovered 2 | . . 2 . . . Drone Launches . | . . . . . . Drone Recoveries . | . . . . . . Exploration | -11 -10 -10 -10 -9 -8 ------------- Run | Scr Mat Min Exi Min Mat Turns Passed 1643 | 55 157 544 457 243 187 Spaces Moved 914 | 35 62 300 283 137 97 Core 11 | 11 . . . . . Treads 821 | 24 62 300 283 137 15 Legs 82 | . . . . . 82 Wheels . | . . . . . . Hover . | . . . . . . Flight . | . . . . . . Fastest Speed 50 | 50 160 160 160 160 120 Average Speed 155 | 139 160 160 160 160 128 Slowest Speed 160 | 160 160 160 160 160 160 Overloaded Moves . | . . . . . . Propulsion Burnouts . | . . . . . . Robots Hopped . | . . . . . . Cave-ins Triggered . | . . . . . . Exploration Rate (%) 30 | 3 21 62 63 23 8 Regions Visited 5 Branch Regions 3 Pre-discovered Areas . | . . . . . . Known Exits Taken . | . . . . . . Unknown Exits Taken 5 | 1 1 1 1 1 . Scrap Searched 1 | . . 1 . . . Spaces Dug . | . . . . . . Terrain Destroyed 51 | . . 7 . 24 20 Melee . | . . . . . . Projectile 51 | . . 7 . 24 20 AOE . | . . . . . . Terrain Rammed . | . . . . . . Walls Destroyed . | . . . . . . Machines Disabled . | . . . . . . Actions | -11 -10 -10 -10 -9 -8 --------- Run | Scr Mat Min Exi Min Mat Total 1049 | 39 82 325 287 159 157 Wait 68 | . 2 . . 18 48 Move 909 | 34 61 299 282 136 97 Hop . | . . . . . . Pick Up . | . . . . . . Fast Attach 17 | 5 . 1 3 2 6 Attach 1 | . . . . . 1 Detach . | . . . . . . Swap 2 | . . 1 . . 1 Drop 8 | . . 1 2 1 4 Fire 42 | . 19 23 . . . Melee . | . . . . . . Ram . | . . . . . . Kick . | . . . . . . Crush 2 | . . . . 2 . Escape Stasis . | . . . . . . Rewire . | . . . . . . Trap . | . . . . . . Miscellaneous . | . . . . . . Route ------- -11/Scrapyard -10/Materials -10/Mines (discovered 3 exits: *Mat x2 / *Exi) -10/Exiles -9/Mines -8/Materials (discovered 2 exits: Fac x2) History --------- Turn | Location | Event 13 | -11/Scrapyard | Discovered new exit (range 16) 56 | -11/Scrapyard | Entered Materials 199 | -10/Materials | Discovered new exit (range 8) 213 | -10/Materials | Entered Mines 236 | -10/Mines | A weapon hastily lodged in a ceiling crevice suddenly fell to the ground 255 | -10/Mines | Learned 8 Materials zone layouts 318 | -10/Mines | Build established: Mutant 393 | -10/Mines | Identified exit to Materials 649 | -10/Mines | Discovered exit to Materials (range 14) 749 | -10/Mines | Deemed a non-threat by the Exiles lab entrance 751 | -10/Mines | Discovered new exit (range 5) 757 | -10/Mines | Entered Exiles 797 | -10/Exiles | Met 8R-AWN 825 | -10/Exiles | Met EX-HEX 879 | -10/Exiles | Met EX-BIN 901 | -10/Exiles | Aligned with FarCom system 903 | -10/Exiles | Given EX-Vault access code 949 | -10/Exiles | Opened EX-Vault 958 | -10/Exiles | Found Prototype Ballistic Gun 958 | -10/Exiles | Identified AWS/Gauss 969 | -10/Exiles | Found Prototype Device 969 | -10/Exiles | Identified Skeleton Box 1001 | -10/Exiles | Warned to stay clear of 0b10 Research branches 1057 | -10/Exiles | Met EX-DEC 1197 | -10/Exiles | Discovered new exit (range 14) 1214 | -10/Exiles | Left Exiles lab with AWS/Gauss 1214 | -10/Exiles | Entered Mines 1215 | -9/Mines | Assembled infested the area 1280 | -9/Mines | Met a Derelict bent on vengeance 1310 | -9/Mines | Assisted by bots powering up and referring to "LRC-V3" 1444 | -9/Mines | Discovered new exit (range 8) 1457 | -9/Mines | Entered Materials 1457 | -8/Materials | Evolved 4 slots: Propulsion x2, Utility x2 1458 | -8/Materials | Identified exit to Factory 1644 | -8/Materials | Self-destructed Last Messages --------------- 01604_ G-47 Trooper destroyed. 01605_ Slug penetrates G-47 Trooper. 01608_ G-47 Trooper destroyed. 01611_ R-06 Scavenger collects Particle Gun. 01616_ Slug penetrates Wall. 01616_ Slug penetrates Earth. 01624_ U-05 Engineer builds a Wall. 01626_ K-01 Serf collects debris. 01629_ W-25 Informer sends out distress signal. 01630_ Destroyed Lgt. Deuterium Engine. 01631_ Slug penetrates Wall. 01631_ K-01 Serf collects debris. 01632_ Slug penetrates W-25 Informer. 01632_ U-05 Engineer builds a Wall. 01633_ W-25 Informer destroyed. 01636_ Slug penetrates G-47 Trooper. 01637_ G-47 Trooper destroyed. 01638_ Pressure Siphon disabled. 01639_ AWS/Gauss suddenly breaks down. 01639_ U-05 Engineer builds a Wall. Map ----- +----------------------------------------------------+ | | | | | | | | | | | | | | | | | | | | | | | | | ???????????????????#############?????????????????? | | ???????????????????# #?????????????????? | | ???????????????????# """"""" #?????????????????? | | ???????????????????# """"""" #?????????????????? | | ???????????????????# """"""" #?????????????????? | | ???????????????????# """"""" #?????????????????? | | ???????????????????# """"""" #?????????????????? | | ???????????????????# #?????????????????? | | ????????#################+##############?????????? | | ????????# """T""" ????????? | | ????????# = ????????? | | ????????# *= m ????????? | | ????????# % ????????? | | ????????######## %@ ##### #####??????????? | | ???????????????# ######+####???????????? | | ??????????????## o # #???????????? | | ??????????????#" """" # """ #???????????? | | ??????????????#T """" + "T" #???????????? | | ??????????????#" """% # #???????????? | | ??????????????## |###########???????????? | | ??????????????## =%##?????#####??????????? | | ??????????????#" ^ =%####### ??????????? | | ??????????????#T =%! ??????????? | | ??????????????#" g *!%= [?????????? | | ??????????????## =/ u = g ??????????? | | ???????????????#* =w ###+### ??????????? | | ???????????????#%=u#T#;# ## #####??????????? | | ??????????????##![ ### # ## #??????????????? | | ??????????????#=%! ## # ## #??????????????? | | ????????????? ! #### ## #??????????????? | | ???????????? #??# ## #??????????????? | | ???????????? #??# ## #??????????????? | | ??????????????# #??# ## #??????????????? | | ??????????????########## ## #??????????????? | | ??????????????# # ## #??????????????? | | ??????????????# """ # #######??????????????? | | ??????????????# """ + #????????????????????? | | ??????????????# """ # #????????????????????? | +----------------------------------------------------+ Best States ------------- Heat Dissipation 45 Energy Generation 14 Energy Capacity 250 Matter Stores 500 Matter Capacity 500 Sight Range 16 Terrain Scan Density 10 Evasion (%) 40 Recoil Reduction 2 Item Schematics ----------------- None Robot Schematics ------------------ None Fabricated ------------ Nothing Alien Tech Used ----------------- None Achievements -------------- None Challenges ------------ None Game ------ Seed FissionCatalystSuperbattery Manual? 0 Play Time 00:12:21 Cumulative 54.8 hours Start 2021.05.07 @ 12:31:01 End 2021.05.07 @ 12:41:04 Sessions 1 Manual Loads 0 Difficulty Rogue Special Mode None Game No. 122 Rogue 122 Adventurer 0 Explorer 0 Win Type - Total 0 Types 0/0/0/0/0/0/0/0/0 Lore% 24 Gallery% 31 Achievement% 26 Wizard Run 0 Options --------- ASCII 0 Keyboard 0 Movement Numpad Keybinds 0 Fullscreen 1 Font 12/Smallcaps Map View 83x54 Tactical HUD 1 Map Filters NONE Filters NONE Steam 1 RUN: e5318842-e9b0-4452-9bd8-ce6dd6d283d1